bitfinex-derivatives/quotes_ETHF0:USTF0_20250520
["timestamp","ask_amount","ask_price","bid_price","bid_amount"]
[1747756636219,0.80479,2484.4,2484.3,1.3836]
[1747756636619,0.80486,2484.2,2484.1,0.0060327]
[1747756636819,0.80486,2484.2,2484.1,8.4110327]
[1747756637327,0.80486,2484.2,2484.1,0.0060327]
[1747756637522,2.09515,2484.3,2484.2,0.80486]
[1747756637920,4.10783,2484.3,2484.2,0.80486]
[1747756639231,0.80486,2484.2,2484.1,10.5921027]
[1747756639630,0.80486,2484.2,2484.1,9.2159027]
[1747756639931,6.02541404,2484.2,2484.1,0.0060327]
[1747756640627,7.43381404,2484.2,2484.1,0.0060327]
[1747756641735,5.42105404,2484.2,2484.1,0.0060327]
[1747756641934,7.43381404,2484.2,2484.1,0.0060327]
[1747756646935,3.2078,2484.4,2484.3,0.80482]
[1747756647139,6.02520404,2484.4,2484.3,0.80482]
[1747756647441,0.80482,2484.3,2484.2,2.10864]
[1747756647636,5.31741404,2484.4,2484.3,0.80482]
[1747756647841,6.52523404,2484.4,2484.3,9.21282]
[1747756648837,7.33002404,2484.4,2484.3,9.21282]
[1747756649238,3.2078,2484.5,2484.4,0.80479]
[1747756649439,3.2078,2484.5,2484.4,2.10859]
[1747756649735,0.80479,2484.4,2484.1,0.6464327]
[1747756649939,0.80482,2484.3,2484.2,8.408]
[1747756650144,4.01261404,2484.3,2484.2,8.408]
[1747756650341,7.39089404,2484.3,2484.2,8.408]
[1747756650845,7.39089404,2484.3,2484.2,9.21286]
[1747756651143,0.80486,2484.2,2484.1,8.4140327]
[1747756651337,8.58605404,2484.2,2484.1,8.4140327]
[1747756651534,10.59881404,2484.2,2484.1,8.4140327]
[1747756651736,6.58616,2484.2,2484.1,9.2189227]
[1747756652045,3.2078,2484.2,2484.1,9.2189227]
[1747756653436,3.2078,2484.2,2484.1,14.2189227]
[1747756654342,3.2078,2484.2,2484.1,15.5578227]
[1747756654541,3.2078,2484.2,2484.1,16.2215227]
[1747756655240,4.01266,2484.2,2484.1,16.2215227]
[1747756655441,4.01266,2484.2,2484.1,11.2205227]
[1747756655641,4.01266,2484.2,2484.1,11.54249844]
[1747756656042,3.2078,2484.2,2484.1,11.54249844]
[1747756656542,4.01266,2484.2,2484.1,11.54249844]
[1747756656948,4.01266,2484.2,2484.1,10.87879844]
[1747756657139,0.80486,2484.2,2484.1,10.87879844]
[1747756657345,6.02541404,2484.2,2484.1,0.32800844]
[1747756657848,9.23321404,2484.2,2484.1,0.32800844]
[1747756658047,10.61781404,2484.2,2484.1,0.32800844]
[1747756659048,7.41002,2484.2,2484.1,0.8109327]
[1747756659447,6.60516,2484.2,2484.1,0.8109327]
[1747756659644,4.5924,2484.2,2484.1,0.8109327]
[1747756659839,3.2078,2484.2,2484.1,0.8109327]
[1747756660046,0.80478,2484.5,2484.4,0.8048]
[1747756660047,2.16768,2484.5,2484.4,0.8048]
[1747756660548,7.38799404,2484.5,2484.4,0.8048]
[1747756661946,7.38798404,2484.5,2484.4,0.8048]
[1747756662150,0.00600377,2484.6,2484.5,0.80477]
[1747756662451,0.00600377,2484.6,2484.5,2.14857]
[1747756662850,0.81073377,2484.6,2484.5,2.14857]
[1747756663246,4.01853377,2484.6,2484.5,2.14857]
[1747756663554,3.21380377,2484.6,2484.5,2.47053192]
[1747756664053,0.00600377,2484.6,2484.5,2.47053192]
[1747756664240,0.81073377,2484.6,2484.5,2.47053192]
[1747756664442,0.00600377,2484.6,2484.5,10.87753192]
[1747756664650,0.81073377,2484.6,2484.5,10.87753192]
[1747756665156,0.00600377,2484.6,2484.5,10.87753192]
[1747756665356,0.00600377,2484.6,2484.5,11.56243192]
[1747756666944,1.3468,2485.1,2485.0,0.8046]
[1747756667346,6.56662404,2485.1,2484.9,10.52701]
[1747756667548,3.20779404,2485.0,2484.9,9.11961]
[1747756667747,5.35919404,2485.0,2484.9,9.11961]
[1747756667953,7.37130904,2485.0,2484.9,9.11961]
[1747756668258,6.56670904,2485.0,2484.9,9.11961]
[1747756668756,1.3468,2485.0,2484.9,10.41641]
[1747756668946,3.8528,2485.2,2485.1,0.80457]
[1747756669143,9.26153404,2485.2,2485.1,0.80457]
[1747756669356,11.27348404,2485.2,2485.1,0.80457]
[1747756670247,10.46894404,2485.2,2485.1,0.80457]
[1747756670447,11.27348404,2485.2,2485.1,0.80457]
[1747756671245,9.82394404,2485.2,2485.1,0.80457]
[1747756671645,10.62848404,2485.2,2485.1,0.80457]
[1747756671844,4.6042,2485.2,2485.1,0.80457]
[1747756672150,3.2078,2485.2,2485.1,2.08377]
[1747756672555,3.2078,2485.2,2485.1,10.39877]
[1747756672749,3.2078,2485.2,2485.1,10.72064821]
[1747756673761,4.5526,2485.2,2485.1,10.72064821]
[1747756674459,3.9046,2485.5,2485.4,0.80447]
[1747756674660,5.2794,2485.5,2485.4,0.80447]
[1747756674857,7.29110404,2485.5,2485.4,0.80447]
[1747756675159,8.09554404,2485.5,2485.4,0.80447]
[1747756675361,8.09554404,2485.5,2485.4,1.12634821]
[1747756675550,8.09554404,2485.5,2485.4,0.32187821]
[1747756675754,11.30334404,2485.5,2485.4,0.32187821]
[1747756676967,7.29110404,2485.5,2485.4,1.12635821]
[1747756677262,6.08383404,2485.5,2485.4,0.80448]
[1747756677461,5.27939404,2485.5,2485.4,0.80448]
[1747756678357,4.58259404,2485.5,2485.4,9.11848]
[1747756678864,4.01216,2485.8,2485.5,2.0111]
[1747756679167,1.3327,2485.7,2485.6,0.80441]
[1747756679463,2.13708,2485.7,2485.6,0.80441]
[1747756681568,0.6453,2485.9,2485.8,0.80435]
[1747756681759,1.9413,2485.9,2485.8,0.80435]
[1747756681960,7.96478904,2485.9,2485.8,0.80435]
[1747756682966,0.80444,2485.6,2485.5,0.80439]
[1747756683359,2.1004,2485.7,2485.6,0.80441]
[1747756683555,0.80444,2485.5,2485.4,9.1234827]
[1747756683964,1.2861,2485.5,2485.4,9.1234827]
[1747756684463,1.2861,2485.7,2485.6,0.80441]
[1747756684668,4.49389404,2485.7,2485.6,0.80441]
[1747756685267,4.49389404,2485.7,2485.5,0.80442]
[1747756685468,4.49389404,2485.7,2485.5,0.80441]
[1747756685469,0.80444,2485.6,2485.5,0.80441]
[1747756685662,0.80444,2485.5,2485.4,0.0060327]
[1747756685967,3.20779404,2485.5,2485.4,0.8105027]
[1747756686165,6.50560404,2485.5,2485.4,0.8105027]
[1747756686464,4.49389404,2485.5,2485.4,0.8105027]
[1747756687266,10.51784404,2485.5,2485.4,0.0060327]
[1747756690967,0.8046,2485.0,2484.9,0.21888893]
[1747756691165,4.01239404,2485.0,2484.9,0.21888893]
[1747756691360,6.02450904,2485.0,2484.9,0.21888893]
[1747756691556,7.39230904,2485.0,2484.9,0.21888893]
[1747756692666,7.39230904,2485.0,2484.7,0.8107327]
[1747756692667,0.80467,2484.8,2484.7,0.8107327]
[1747756692862,4.01246404,2484.8,2484.7,0.8107327]
[1747756693064,6.02473904,2484.8,2484.7,0.8107327]
[1747756693258,5.22006904,2484.8,2484.7,0.8107327]
[1747756693774,6.02473904,2484.8,2484.7,0.8107327]
[1747756693972,1.3678,2485.0,2484.9,0.80464]
[1747756694276,4.57559404,2485.0,2484.9,0.80464]
[1747756694775,5.38019404,2485.0,2484.9,1.12652923]
[1747756696478,4.57559404,2485.0,2484.9,1.12652923]
[1747756696978,5.38019404,2485.0,2484.9,1.12652923]
[1747756697275,4.57559404,2485.0,2484.9,1.12652923]
[1747756699078,0.0060327,2485.2,2485.1,0.80457]
[1747756699575,3.21382674,2485.2,2485.1,0.80457]
[1747756699976,3.21382674,2485.2,2485.1,1.34534816]
[1747756700182,0.0060327,2485.2,2485.1,1.34534816]
[1747756700885,0.0060327,2485.2,2485.1,11.56734816]
[1747756701890,0.0060327,2485.2,2485.1,2.00524816]
[1747756702291,0.8105727,2485.2,2485.1,2.00524816]
[1747756702496,4.68966674,2485.2,2485.1,1.34534816]
[1747756702793,4.68966674,2485.2,2485.1,1.12645923]
[1747756702794,0.0060327,2485.2,2485.1,1.12645923]
[1747756702983,0.0060327,2485.2,2485.1,2.46785923]
[1747756704187,0.0060327,2485.2,2485.1,2.68674816]
[1747756705090,1.3818327,2485.2,2485.1,2.68674816]
[1747756705691,5.39416674,2485.2,2485.1,0.54077816]
[1747756705885,6.04786674,2485.2,2485.1,0.54077816]
[1747756706293,6.04786674,2485.2,2485.1,1.34534816]
[1747756706495,5.24332674,2485.2,2485.1,1.34534816]
[1747756707707,6.04786674,2485.2,2485.1,1.34534816]
[1747756707904,6.04786674,2485.2,2485.1,0.32188923]
[1747756708101,8.05981674,2485.2,2485.1,0.32188923]
[1747756708297,8.05981674,2485.2,2485.1,1.12645923]
[1747756711698,8.05981674,2485.2,2485.1,0.80457]
[1747756713007,8.72791296,2485.2,2485.1,0.80457]
[1747756713602,7.92337296,2485.2,2484.9,8.239]
[1747756713806,4.01239404,2485.0,2484.9,8.239]
[1747756714114,0.80464,2484.9,2484.8,0.21888893]
[1747756714313,5.98673404,2484.9,2484.8,1.02354893]
[1747756714605,7.99892904,2484.9,2484.8,1.02354893]
[1747756715308,7.99892904,2484.9,2484.8,0.80466]
[1747756715808,7.19428904,2484.9,2484.8,0.80466]
[1747756717311,7.99892904,2484.9,2484.8,0.80466]
[1747756717609,7.99892904,2484.9,2484.8,1.34612752]
[1747756719009,7.99892904,2484.9,2484.8,1.12655229]
[1747756720408,11.20672904,2484.9,2484.8,1.12655229]
[1747756721210,0.8047,2484.7,2484.6,0.29284658]
[1747756721408,4.01249404,2484.7,2484.6,0.29284658]
[1747756721609,12.94354905,2484.7,2484.6,0.29284658]
[1747756722510,0.80477,2484.5,2484.4,0.0060327]
[1747756722703,7.22036404,2484.5,2484.4,0.0060327]
[1747756722907,9.23288404,2484.5,2484.4,0.0060327]
[1747756726520,10.55838404,2484.5,2484.4,0.0060327]
[1747756727419,15.55838404,2484.5,2484.4,0.0060327]
[1747756727614,2.01229,2484.1,2483.7,11.05499]
[1747756727816,0.80499,2483.8,2483.7,11.05499]
[1747756728122,0.80499,2483.8,2483.7,1.47009]
[1747756728314,0.80499,2483.8,2483.7,0.6651]
[1747756728615,2.13049,2483.8,2483.7,1.47013]
[1747756729016,4.143575,2483.8,2483.7,1.47013]
[1747756729321,4.143575,2483.8,2483.7,0.6651]
[1747756729622,0.80503,2483.7,2483.6,0.80505]
[1747756729823,2.21203,2483.7,2483.6,0.80505]
[1747756730116,0.80506,2483.6,2483.5,9.7365127]
[1747756730320,2.21206,2483.6,2483.5,1.4955127]
[1747756730812,0.80506,2483.6,2483.5,1.4955127]
[1747756731018,3.2078,2483.8,2483.7,0.80502]
[1747756731219,4.6148,2483.8,2483.7,0.80502]
[1747756731414,9.83567904,2483.8,2483.7,0.80502]
[1747756732016,10.64066904,2483.8,2483.7,0.80502]
[1747756732221,0.80506,2483.6,2483.5,2.8838127]
[1747756732921,2.07836,2483.6,2483.5,2.8838127]
[1747756733322,3.2078,2483.8,2483.7,0.80502]
[1747756733510,4.4811,2483.8,2483.7,0.80502]
[1747756733713,10.50698904,2483.8,2483.7,0.80502]
[1747756735225,0.80506,2483.6,2483.5,0.0060327]
[1747756735428,4.01284404,2483.7,2483.6,0.80502]
[1747756735725,1.2804,2483.7,2483.6,0.80502]
[1747756736321,3.2078,2483.8,2483.7,0.80503]
[1747756736827,0.0060327,2483.9,2483.8,0.80499]
[1747756738529,0.8109927,2483.9,2483.8,0.80499]
[1747756739027,0.80499,2483.8,2483.7,10.3297]
[1747756739226,2.09999,2483.8,2483.7,0.805]
[1747756739830,0.0060327,2483.9,2483.8,0.80499]
[1747756740925,0.8109927,2483.9,2483.8,8.98699]
[1747756741119,0.8109927,2483.9,2483.8,9.30900024]
[1747756741318,0.0060327,2483.9,2483.8,9.30900024]
[1747756741827,0.8109927,2483.9,2483.8,9.30900024]
[1747756742022,0.8109927,2483.9,2483.8,0.32201024]
[1747756742222,2.8239977,2483.9,2483.8,0.32201024]
[1747756742428,0.80506,2483.6,2483.5,9.6953127]
[1747756743024,2.17786,2483.6,2483.5,9.6953127]
[1747756743225,2.17786,2483.6,2483.5,10.9819127]
[1747756744129,0.80506,2483.6,2483.5,10.9819127]
[1747756744826,0.80506,2483.6,2483.5,10.1768327]
[1747756745024,0.80506,2483.6,2483.5,8.1880327]
[1747756745223,4.174705,2483.6,2483.5,0.0060327]
[1747756748434,9.174705,2483.6,2483.5,0.0060327]
[1747756749130,4.174705,2483.6,2483.5,0.8111227]
[1747756749331,3.2078,2483.7,2483.6,0.80506]
[1747756749634,3.2078,2483.7,2483.6,1.47316]
[1747756749832,3.2078,2483.7,2483.6,2.84826]
[1747756750236,3.2078,2483.7,2483.6,3.17031161]
[1747756750935,4.01282,2483.7,2483.6,3.17031161]
[1747756751129,4.01282,2483.7,2483.6,11.35331161]
[1747756751329,9.23377904,2483.7,2483.6,0.99015161]
[1747756751633,9.23377904,2483.7,2483.6,0.32205161]
[1747756751827,9.88327904,2483.7,2483.6,0.32205161]
[1747756752031,11.25217904,2483.7,2483.6,0.32205161]
[1747756752235,11.25217904,2483.7,2483.6,0.80506]
[1747756752623,0.80506,2483.6,2483.5,0.0060327]
[1747756752935,4.01285404,2483.6,2483.5,0.0060327]
[1747756753136,4.187205,2483.6,2483.5,0.0060327]
[1747756753438,7.39499904,2483.6,2483.5,0.0060327]
[1747756754834,7.39499904,2483.6,2483.5,0.8111227]
[1747756755036,2.17396,2483.6,2483.5,0.0060327]
[1747756755536,2.17396,2483.6,2483.5,0.8111227]
[1747756755737,3.2078,2483.7,2483.6,0.80506]
[1747756755935,3.2078,2483.7,2483.6,2.12206]
[1747756756331,4.5408,2483.7,2483.6,2.12206]
[1747756756937,2.13802,2483.7,2483.6,1.63906488]
[1747756757328,5.34582,2483.7,2483.6,0.32206488]
[1747756757837,5.34582,2483.7,2483.6,1.12712488]
[1747756758133,10.56677904,2483.7,2483.6,0.32206488]
[1747756759838,0.80506,2483.6,2483.5,0.0060327]
[1747756760035,5.37925404,2483.6,2483.5,0.0060327]
[1747756760235,2.86616,2483.6,2483.5,0.0060327]
[1747756760435,8.08719904,2483.6,2483.5,0.0060327]
[1747756760938,6.07395404,2483.6,2483.5,0.0060327]
[1747756761236,8.08719904,2483.6,2483.5,0.0060327]
[1747756761642,8.08719904,2483.6,2483.5,0.32812501]
[1747756763134,8.08719904,2483.6,2483.5,0.0060327]
[1747756769143,8.21554128,2483.6,2483.5,0.0060327]
[1747756770246,8.54148439,2483.6,2483.5,0.0060327]
[1747756771242,2.01294,2483.3,2482.9,0.29284658]
[1747756771445,4.01305,2483.0,2482.9,0.29284658]
[1747756771648,0.80528,2482.9,2482.8,0.29284658]
[1747756771846,5.95327404,2482.9,2482.8,0.29284658]
[1747756772149,7.96708904,2482.9,2482.8,0.29284658]
[1747756774351,0.80535,2482.7,2482.6,0.0060327]
[1747756774555,3.20779404,2482.8,2482.6,0.0060327]
[1747756774752,0.80535,2482.7,2482.6,0.0060327]
[1747756775751,0.80535,2482.7,2482.6,0.32822963]
[1747756776853,2.08125,2482.7,2482.6,0.32822963]
[1747756781058,5.28905,2482.7,2482.6,0.32822963]
[1747756783367,0.80524,2483.0,2482.9,0.80527]
[1747756783561,3.87898602,2483.1,2482.7,2.0913]
[1747756783766,0.80529,2482.9,2482.8,2.1952]
[1747756784265,0.80529,2482.9,2482.8,1.3899]
[1747756785265,0.80529,2482.9,2482.8,1.71209693]
[1747756786154,0.80529,2482.9,2482.8,2.51739693]
[1747756786360,0.80525,2483.0,2482.8,2.51739693]
[1747756786560,4.01304404,2483.0,2482.9,0.6937]
[1747756786861,0.80525,2483.0,2482.9,2.1009]
[1747756787361,0.80525,2483.0,2482.9,2.90617]
[1747756787770,3.2078,2483.1,2482.9,2.90617]
[1747756787962,0.80523,2483.0,2482.9,2.1009]
[1747756789467,2.10773,2483.0,2482.9,2.1009]
[1747756790267,2.10773,2483.0,2482.7,9.69872]
[1747756790268,0.80533,2482.7,2482.6,0.22574717]
[1747756790765,0.80533,2482.7,2482.6,1.03108717]
[1747756790962,0.80532,2482.8,2482.6,1.03110717]
[1747756791265,0.80532,2482.8,2482.7,2.19383]
[1747756791767,0.80532,2482.8,2482.7,1.3885]
[1747756792270,0.80532,2482.8,2482.7,1.71067049]
[1747756792765,6.02700904,2482.8,2482.7,0.32217049]
[1747756792969,9.23480904,2482.8,2482.7,0.32217049]
[1747756794174,0.80533,2482.7,2482.6,0.0060327]
[1747756794378,5.34512404,2482.7,2482.6,0.0060327]
[1747756794570,5.99652404,2482.7,2482.6,0.0060327]
[1747756795272,2.13733,2482.7,2482.6,0.0060327]
[1747756795971,0.80533,2482.7,2482.6,0.8113927]
[1747756796172,0.80533,2482.7,2482.6,1.13359567]
[1747756796679,3.2078,2482.8,2482.7,0.80533]
[1747756796870,3.2078,2482.8,2482.7,10.26193]
[1747756797676,4.0131,2482.8,2482.7,10.26193]
[1747756797978,4.0131,2482.8,2482.7,9.99851744]
[1747756798475,4.0131,2482.8,2482.7,10.80384744]
[1747756798868,0.67118602,2482.9,2482.8,0.8053]
[1747756799074,0.80527,2482.9,2482.8,2.1629]
[1747756799273,0.80527,2482.9,2482.8,2.8221]
[1747756799477,3.2078,2483.1,2482.8,2.0168]
[1747756799677,4.01302,2483.1,2483.0,0.80523]
[1747756799875,0.80523,2483.0,2482.9,1.44475]
[1747756800081,0.80523,2483.0,2482.9,0.6395]
[1747756800574,0.80523,2483.0,2482.9,1.44477]
[1747756803179,0.80523,2483.0,2482.9,0.6395]
[1747756803680,1.48543,2483.0,2482.9,0.6395]
[1747756804080,2.76393,2483.0,2482.9,0.6395]
[1747756804277,2.08373,2483.0,2482.9,0.6395]
[1747756805278,3.2078,2483.2,2482.9,8.7385]
[1747756805480,1.3809,2483.1,2482.9,8.7385]
[1747756805674,3.2078,2483.2,2482.9,8.7385]
[1747756806175,4.01298,2483.2,2482.9,8.7385]
[1747756806383,0.80523,2483.0,2482.9,8.7385]
[1747756806580,0.80533,2482.7,2482.6,8.1050327]
[1747756806976,0.80533,2482.7,2482.6,8.7699327]
[1747756807378,1.3809,2482.9,2482.8,0.8053]
[1747756807579,3.2078,2483.2,2483.1,0.8052]
[1747756807779,0.80523,2483.0,2482.9,0.54237832]
[1747756809186,0.80523,2483.0,2482.9,0.32214277]
[1747756809586,4.01302404,2483.0,2482.9,0.32214277]
[1747756809884,6.60166,2483.2,2483.1,0.8052]
[1747756809885,5.3939,2483.2,2483.1,0.8052]
[1747756810084,4.5887,2483.2,2482.9,0.32214277]
[1747756810276,0.80523,2483.0,2482.9,1.34761832]
[1747756810486,0.80523,2483.1,2483.0,0.80521]
[1747756810684,3.2078,2483.2,2483.1,0.8052]
[1747756810886,3.2078,2483.2,2483.1,8.9042]
[1747756811384,1.3944,2483.5,2483.4,0.8051]
[1747756811583,2.19947,2483.5,2483.4,0.8051]
[1747756811786,0.80514,2483.3,2483.2,1.3775]
[1747756811988,0.80514,2483.3,2483.2,8.099]
[1747756812189,0.80517,2483.2,2483.1,0.32214277]
[1747756812388,5.41686404,2483.2,2483.1,8.42114277]
[1747756812589,2.20907,2483.2,2483.1,8.42114277]
[1747756813581,2.20907,2483.2,2483.1,8.64099562]
[1747756814587,2.20907,2483.2,2483.1,9.44619562]
[1747756814985,2.20907,2483.2,2483.1,8.64099562]
[1747756815385,2.20907,2483.2,2483.1,8.63999562]
[1747756815585,2.85777,2483.2,2483.1,8.63999562]
[1747756816487,6.06556404,2483.2,2483.1,8.63999562]
[1747756816694,6.06556404,2483.2,2483.1,0.54199562]
[1747756816885,6.06556404,2483.2,2483.1,8.63999562]
[1747756817086,8.07913404,2483.2,2483.1,8.42014277]
[1747756817291,8.75833404,2483.2,2483.1,8.42014277]
[1747756817492,8.75833404,2483.2,2483.1,0.32214277]
[1747756818895,0.80527,2482.9,2482.8,8.31785285]
[1747756819099,4.01306404,2482.9,2482.8,8.31785285]
[1747756819385,6.02687904,2482.9,2482.8,8.31785285]
[1747756819590,7.39837904,2482.9,2482.8,8.31785285]
[1747756820089,7.39837904,2482.9,2482.8,0.21985285]
[1747756820287,4.01309404,2482.8,2482.7,7.12e-06]
[1747756820483,4.01312404,2482.7,2482.6,9.82e-06]
[1747756820688,9.20922404,2482.7,2482.6,9.82e-06]
[1747756820886,16.22319904,2482.7,2482.6,9.82e-06]
[1747756821089,0.80064963,2482.3,2481.9,8.12]
[1747756821290,7.21624367,2482.3,2481.9,8.12]
[1747756821488,9.23054367,2482.3,2481.9,8.12]
[1747756821993,0.80556,2482.0,2481.9,8.12]
[1747756822390,3.20779404,2482.1,2482.0,0.80556]
[1747756822391,1.3457,2482.1,2482.0,0.80556]
[1747756822596,3.2078,2482.7,2482.1,2.01382]
[1747756822792,1.3517327,2482.5,2482.4,0.80543]
[1747756822989,2.1571327,2482.5,2482.4,0.80543]
[1747756823195,1.3517327,2482.5,2482.3,10.24685]
[1747756823497,2.1571327,2482.5,2482.4,1.3204]
[1747756823800,2.1571327,2482.5,2482.4,0.32219318]
[1747756823998,2.1571327,2482.5,2482.4,9.24862318]
[1747756823999,1.3517327,2482.5,2482.4,9.24862318]
[1747756824196,0.0060327,2482.5,2482.4,9.24862318]
[1747756825292,0.8114327,2482.5,2482.4,9.24862318]
[1747756825901,0.0060327,2482.5,2482.4,9.24862318]
[1747756826604,2.1194327,2482.5,2482.4,9.24862318]
[1747756829300,2.1194327,2482.5,2482.4,8.44319318]
[1747756830102,2.1194327,2482.5,2482.4,9.24862318]
[1747756830303,1.3140327,2482.5,2482.4,9.24862318]
[1747756830803,0.0060327,2482.5,2482.4,9.24862318]
[1747756831002,0.6716375,2482.9,2482.8,0.8053]
[1747756831199,0.6716375,2482.9,2482.8,8.9263]
[1747756831903,0.6716375,2482.9,2482.8,10.55639318]
[1747756832507,1.4769075,2482.9,2482.8,10.55639318]
[1747756833507,0.80527,2482.9,2482.8,10.55639318]
[1747756833806,2.18606,2483.0,2482.9,0.80527]
[1747756834009,2.18606,2483.0,2482.8,9.75109318]
[1747756834010,0.80527,2482.9,2482.8,10.55636318]
[1747756835804,0.80527,2482.9,2482.8,9.75109318]
[1747756836102,4.01306404,2482.9,2482.8,8.44319318]
[1747756836309,4.68956404,2482.9,2482.8,9.24849318]
[1747756837302,4.68956404,2482.9,2482.8,8.44319318]
[1747756837609,4.68956404,2482.9,2482.8,0.32219318]
[1747756837808,4.68956404,2482.9,2482.8,8.44319318]
[1747756838210,4.68956404,2482.9,2482.8,9.24849318]
[1747756838911,2.18605,2483.0,2482.9,0.80527]
[1747756839209,5.39384404,2483.0,2482.9,0.80527]
[1747756839410,5.39384404,2483.0,2482.9,8.92627]
[1747756839802,0.0060327,2483.1,2483.0,0.80523]
[1747756840005,0.0060327,2483.1,2483.0,2.16833]
[1747756840810,0.0060327,2483.1,2483.0,7.16833]
[1747756841111,0.6716375,2483.3,2483.2,0.80517]
[1747756841308,0.6716375,2483.3,2483.2,4.01297]
[1747756841612,0.6716375,2483.3,2483.2,9.01297]
[1747756842715,1.01348896,2483.5,2483.2,9.01297]
[1747756842909,1.34327501,2483.8,2483.7,0.80501]
[1747756843107,5.35603905,2483.8,2483.7,0.80501]
[1747756843411,1.34327501,2483.8,2483.7,8.92501]
[1747756843602,1.34327501,2483.8,2483.7,10.31571]
[1747756843808,2.14824501,2483.8,2483.7,10.99541]
[1747756844217,1.34327501,2483.8,2483.7,10.99541]
[1747756844413,1.34327501,2483.8,2483.7,0.32219318]
[1747756844414,4.01276404,2483.8,2483.7,0.32219318]
[1747756844619,7.40454904,2483.8,2483.7,0.32219318]
[1747756846116,0.80501,2483.7,2483.6,8.12]
[1747756846316,6.65170404,2483.7,2483.6,8.12]
[1747756846518,11.87266904,2483.7,2483.6,8.12]
[1747756846815,0.8051,2483.4,2483.3,8.119]
[1747756847014,0.8052,2483.1,2483.0,0.44465278]
[1747756847221,4.01299404,2483.1,2483.0,0.44465278]
[1747756847411,6.02664904,2483.1,2483.0,0.44465278]
[1747756847615,6.02664904,2483.1,2483.0,1.24988278]
[1747756847918,6.02664904,2483.1,2483.0,1.13338961]
[1747756848113,1.3041,2483.1,2483.0,1.13338961]
[1747756848421,0.8052,2483.1,2483.0,1.13337961]
[1747756848619,5.31709404,2483.1,2483.0,8.44715961]
[1747756848820,7.33074904,2483.1,2483.0,9.25238961]
[1747756849319,7.33074904,2483.1,2483.0,8.44715961]
[1747756849519,10.53854904,2483.1,2483.0,0.32815961]
[1747756849715,15.53854904,2483.1,2483.0,0.32815961]
[1747756850009,15.53854904,2483.1,2482.5,0.43862008]
[1747756850010,0.80536,2482.6,2482.5,0.43862008]
[1747756850215,0.80546,2482.3,2482.2,0.58794037]
[1747756850422,4.01325404,2482.3,2482.2,0.58794037]
[1747756850718,6.02755404,2482.3,2482.2,0.58794037]
[1747756851019,7.39685404,2482.3,2482.2,0.58794037]
[1747756851220,0.80553,2482.1,2482.0,12.1663827]
[1747756851422,3.20779404,2482.1,2482.0,12.1663827]
[1747756851623,4.01332404,2482.1,2482.0,12.1663827]
[1747756851819,4.01332404,2482.1,2482.0,11.3608327]
[1747756852019,9.23558904,2482.1,2482.0,0.0060327]
[1747756852224,14.23558904,2482.1,2482.0,0.0060327]
[1747756853114,2.01396,2482.0,2481.5,0.80571]
[1747756853313,0.80572,2481.5,2481.4,8.95375]
[1747756853515,4.01351404,2481.5,2481.4,8.148]
[1747756853717,1.3693,2481.5,2481.4,8.95375]
[1747756854924,2.17502,2481.5,2481.4,8.95375]
[1747756855125,5.38281404,2481.5,2481.4,8.148]
[1747756855625,5.38281404,2481.5,2481.4,8.95375]
[1747756856330,1.3693,2481.5,2481.4,8.95375]
[1747756856727,2.17502,2481.5,2481.4,8.148]
[1747756856920,0.80578,2481.3,2481.2,0.8118427]
[1747756857122,0.80578,2481.3,2481.2,8.9608427]
[1747756857439,0.80577,2481.4,2481.3,0.80576]
[1747756857720,0.80577,2481.4,2481.3,8.95476]
[1747756858127,0.80575,2481.4,2481.3,8.95476]
[1747756858322,2.17504,2481.5,2481.4,0.80575]
[1747756858719,4.57709404,2481.5,2481.4,0.80575]
[1747756859120,5.38281404,2481.5,2481.4,0.80575]
[1747756859321,7.39776404,2481.5,2481.4,0.80575]
[1747756859521,7.39776404,2481.5,2481.3,8.149]
[1747756859522,0.80575,2481.4,2481.3,8.149]
[1747756859718,0.80578,2481.3,2481.2,0.0060327]
[1747756859917,4.01357404,2481.3,2481.2,0.0060327]
[1747756860124,1.3324,2481.3,2481.2,0.8118527]
[1747756861134,1.3324,2481.3,2481.2,2.2227527]
[1747756861432,0.6555,2481.7,2481.6,0.80569]
[1747756861624,0.6555,2481.7,2481.5,0.8057]
[1747756861824,0.80571,2481.6,2481.5,0.8057]
[1747756862025,3.20779404,2481.6,2481.3,8.151]
[1747756862226,3.20779404,2481.4,2481.3,8.95675]
[1747756862630,4.01354404,2481.4,2481.3,8.95677]
[1747756862932,5.34594404,2481.4,2481.3,8.95677]
[1747756864029,7.36097405,2481.4,2481.3,8.151]
[1747756864332,6.55522405,2481.4,2481.2,0.8118327]
[1747756864536,4.01357404,2481.3,2481.2,8.9628527]
[1747756864736,5.35277404,2481.3,2481.2,8.9628527]
[1747756865136,7.36788904,2481.3,2481.2,8.9628527]
[1747756866239,5.35277404,2481.3,2481.2,8.9628527]
[1747756866938,7.36788904,2481.3,2481.2,0.0060327]
[1747756867232,12.36788904,2481.3,2481.2,2.7e-06]
[1747756869234,0.80601,2480.6,2480.5,8.152]
[1747756869432,0.80604,2480.5,2480.4,0.80605]
[1747756869636,2.21354,2480.5,2480.4,0.80605]
[1747756870335,0.00604497,2480.7,2480.6,0.80601]
[1747756870536,0.00604497,2480.7,2480.6,4.01381]
[1747756870747,0.00604497,2480.7,2480.6,9.01381]
[1747756871438,0.00604497,2480.7,2480.6,4.01381]
[1747756872837,0.81202497,2480.7,2480.6,3.2078]
[1747756873739,4.01981901,2480.7,2480.6,11.3608]
[1747756874041,6.03541901,2480.7,2480.6,8.153]
[1747756874237,6.67671901,2480.7,2480.6,8.153]
[1747756874429,7.99951901,2480.7,2480.6,8.153]
[1747756874630,8.65231901,2480.7,2480.6,8.153]
[1747756875039,0.80608,2480.4,2480.3,9.5151]
[1747756875239,3.20779404,2480.4,2480.3,10.32121]
[1747756875437,0.80606,2480.5,2480.4,0.80608]
[1747756875943,1.97014497,2480.7,2480.6,0.80601]
[1747756876129,3.20779404,2480.5,2480.3,9.5151]
[1747756876329,4.01387404,2480.4,2480.3,9.5151]
[1747756876538,4.01387404,2480.4,2480.3,9.62031]
[1747756876745,0.00604497,2480.7,2480.6,0.80601]
[1747756877038,0.00604497,2480.7,2480.6,4.01381]
[1747756877747,0.00604497,2480.7,2480.6,4.33620084]
[1747756878830,0.6467,2481.4,2481.3,0.80579]
[1747756879037,3.2078,2481.5,2481.2,8.154]